bitfinex/quotes_SOLUSD_20250125
["timestamp","ask_amount","ask_price","bid_price","bid_amount"]
[1737769828145,0.08558837,251.48,251.47,35.8866]
[1737769828350,0.08705134,251.51,251.5,20.0]
[1737769828533,0.3973,251.67,251.51,21.0]
[1737769829362,0.3973,251.68,251.51,21.0]
[1737769829539,0.3973,251.68,251.52,3.9758]
[1737769830070,23.776884,251.67,251.53,20.0]
[1737769831763,0.3973,251.68,251.53,20.0]
[1737769831967,0.3973,251.68,251.54,23.9755]
[1737769832262,1.5543,251.69,251.54,23.9755]
[1737769832437,5.302e-05,251.55,251.54,23.9755]
[1737769833164,1.5543,251.69,251.57,1.0]
[1737769833469,1.5543,251.69,251.58,2.94]
[1737769834337,1.5543,251.69,251.59,1.0]
[1737769834535,1.5543,251.69,251.61,20.0]
[1737769835537,1.5543,251.69,251.62,3.9742]
[1737769840367,1.9516,251.69,251.61,20.0]
[1737769840569,1.9516,251.69,251.58,2.94]
[1737769840873,1.9516,251.69,251.57,2.94]
[1737769841164,1.9516,251.69,251.59,20.0]
[1737769841678,1.9516,251.69,251.6,20.0]
[1737769842766,1.9516,251.69,251.59,3.9746]
[1737769843068,1.9816,251.69,251.59,3.9746]
[1737769847377,0.07891792,251.6,251.59,3.9746]
[1737769849671,0.07891792,251.6,251.59,23.9746]
[1737769850088,0.07891792,251.6,251.59,20.0]
[1737769850276,0.07891792,251.6,251.58,3.9748]
[1737769850579,0.07891792,251.6,251.59,20.0]
[1737769855459,0.10891792,251.6,251.59,20.0]
[1737769857280,0.1144306,251.69,251.64,20.0]
[1737769857779,0.1144306,251.69,251.62,20.0]
[1737769858481,0.1144306,251.69,251.63,23.974]
[1737769858655,0.1144306,251.69,251.63,20.0]
[1737769860661,0.1144306,251.69,251.64,3.9739]
[1737769867193,0.03,251.69,251.63,20.0]
[1737769867377,0.08581173,251.65,251.63,20.0]
[1737769867583,0.08581173,251.65,251.62,23.9742]
[1737769868271,0.08581173,251.65,251.63,4.037]
[1737769868476,0.11581173,251.65,251.63,4.037]
[1737769869301,0.11581173,251.65,251.63,0.063]
[1737769878514,0.11581173,251.65,251.63,4.037]
[1737769881609,0.11581173,251.65,251.64,23.776884]
[1737769884309,0.11581173,251.65,251.63,4.037]
[1737769886419,0.11581173,251.65,251.64,20.0]
[1737769886722,0.11581173,251.65,251.64,43.776884]
[1737769887222,0.03,251.65,251.64,43.776884]
[1737769887390,0.1133686,251.65,251.64,43.776884]
[1737769887903,0.1133686,251.65,251.63,4.037]
[1737769890217,2.92,251.95,251.69,1.0]
[1737769890412,4.7693345,251.91,251.69,1.0]
[1737769890602,24.1732307,251.9,251.7,1.0]
[1737769890799,27.39544647,251.9,251.71,1.0]
[1737769890998,27.39544647,251.9,251.73,1.0]
[1737769891316,30.76964647,251.9,251.73,1.0]
[1737769891522,30.76964647,251.9,251.71,1.0]
[1737769892315,30.76964647,251.9,251.71,2.0]
[1737769893117,30.76964647,251.9,251.71,1.0]
[1737769893418,27.151384,251.88,251.71,1.0]
[1737769893718,23.776884,251.86,251.71,1.0]
[1737769894723,23.776884,251.86,251.71,1.063]
[1737769894899,23.776884,251.84,251.71,1.063]
[1737769895433,23.776884,251.84,251.71,0.063]
[1737769895599,23.776884,251.82,251.71,0.063]
[1737769896515,0.3963467,251.81,251.71,0.063]
[1737769896917,23.776884,251.79,251.71,0.063]
[1737769898020,0.9929,251.78,251.71,0.063]
[1737769900013,23.776884,251.77,251.71,0.063]
[1737769901126,0.3972,251.76,251.71,0.063]
[1737769902422,1.3902,251.76,251.71,0.063]
[1737769903730,1.7865467,251.76,251.71,0.063]
[1737769904032,1.3902,251.76,251.71,0.063]
[1737769904905,23.776884,251.75,251.71,0.063]
[1737769905319,1.3902,251.76,251.71,0.063]
[1737769905627,0.3972,251.76,251.71,0.063]
[1737769905827,0.9928,251.8,251.71,0.063]
[1737769906626,23.776884,251.79,251.71,0.063]
[1737769907127,1.39,251.78,251.71,0.063]
[1737769907521,0.08014918,251.72,251.71,0.063]
[1737769919073,0.08014918,251.72,251.71,6.3262]
[1737769919276,0.08014918,251.72,251.71,7.9553]
[1737769921052,0.08014918,251.72,251.71,0.063]
[1737769926369,0.08014918,251.72,251.71,2.983]
[1737769926670,0.08014918,251.72,251.71,26.759884]
[1737769926876,0.08014918,251.72,251.71,2.983]
[1737769927179,0.00340108,251.73,251.72,24.776884]
[1737769927365,0.3969,251.93,251.86,1.0]
[1737769927571,0.3969,251.93,251.86,2.0]
[1737769927955,0.3969,251.93,251.88,1.0]
[1737769929546,0.3969,251.93,251.86,2.0]
[1737769930980,0.3969,251.93,251.89,1.0]
[1737769938886,0.3969,251.93,251.86,2.0]
[1737769939187,0.3969,251.93,251.82,1.0]
[1737769939383,0.3969,251.93,251.84,1.0]
[1737769939952,0.3963467,251.98,251.85,23.776884]
[1737769940203,0.03,252.02,251.99,1.0]
[1737769940383,0.03,252.02,251.99,2.0]
[1737769941870,0.03,252.02,251.99,8.2694]
[1737769942980,0.03,252.08,252.07,2.0]
[1737769943189,0.03,252.08,251.94,1.5289]
[1737769943375,0.4263467,252.08,251.95,20.13]
[1737769943576,0.03,252.0,251.94,1.5289]
[1737769943888,0.03,252.0,251.93,1.0]
[1737769944275,0.03,252.0,251.95,1.0]
[1737769944674,0.03,252.0,251.97,2.0]
[1737769944872,0.03,252.0,251.99,2.0]
[1737769947408,0.1041882,252.0,251.97,10.1894]
[1737769947582,0.1041882,252.0,251.97,2.92]
[1737769948993,0.1041882,252.0,251.99,1.0]
[1737769950426,0.1041882,252.0,251.99,2.0]
[1737769951789,0.1041882,252.0,251.99,1.0]
[1737769952111,0.1041882,252.0,251.96,1.0]
[1737769952407,0.1041882,252.0,251.99,1.0]
[1737769954119,0.1041882,252.0,251.99,2.0]
[1737769961221,0.1041882,252.0,251.99,1.0]
[1737769961418,0.1041882,252.0,251.99,2.0]
[1737769961722,0.1041882,252.0,251.94,1.0]
[1737769962017,0.5009882,252.0,251.93,3.92]
[1737769963011,0.5009882,252.0,251.96,1.0]
[1737769963219,0.5009882,252.0,251.94,1.0]
[1737769964722,0.5009882,252.0,251.96,1.0]
[1737769967218,0.03,252.0,251.96,1.0]
[1737769967524,0.08603157,251.97,251.96,1.0]
[1737769971823,0.48283157,251.97,251.94,1.063]
[1737769972198,0.08603157,251.97,251.95,1.0]
[1737769974814,0.08603157,251.97,251.94,1.063]
[1737769976027,0.08603157,251.97,251.95,1.0]
[1737769978027,0.08603157,251.97,251.94,1.063]
[1737769978338,0.48283157,251.97,251.94,0.063]
[1737769979033,0.48283157,251.97,251.96,1.0]
[1737769979034,0.08603157,251.97,251.96,1.0]
[1737769980106,0.08603157,251.97,251.96,2.0]
[1737769980339,0.08603157,251.97,251.96,5.9688]
[1737769980511,0.08603157,251.97,251.96,7.512]
[1737769981232,0.11251701,252.0,251.98,2.0]
[1737769981535,0.07750637,252.01,252.0,8.6402]
[1737769982110,0.07750637,252.01,252.0,12.6084]
[1737769984442,0.07750637,252.01,252.0,36.385284]
[1737769987209,0.03,252.02,252.0,36.385284]
[1737769987407,0.08314711,252.01,252.0,36.385284]
[1737769991137,0.08314711,252.01,252.0,36.448284]
[1737769991522,0.11314711,252.01,252.0,36.448284]
[1737769992225,0.11314711,252.01,252.0,39.368284]
[1737769995740,0.07461874,252.04,252.03,44.776884]
[1737769995937,2.9661,252.21,252.05,24.776884]
[1737769996125,2.0638,252.19,252.05,24.776884]
[1737769996520,0.3965,252.18,252.05,24.776884]
[1737769997237,0.3966,252.15,252.05,1.0]
[1737769997541,0.3966,252.12,252.05,1.0]
[1737769998540,0.4266,252.11,252.05,1.0]
[1737770000146,0.03,252.11,252.05,1.0]
[1737770003551,0.03,252.11,252.05,1.063]
[1737770003752,0.1084319,252.06,252.05,1.063]
[1737770007248,0.03,252.06,252.05,1.063]
[1737770007447,0.10762665,252.06,252.05,1.063]
[1737770016440,0.10762665,252.06,252.05,0.063]
[1737770020683,23.88451065,252.06,252.05,0.063]
[1737770021483,24.28085735,252.06,252.05,0.063]
[1737770021775,24.28085735,252.06,252.05,0.0001]
[1737770021979,23.88451065,252.06,252.05,0.0001]
[1737770022785,24.28085735,252.06,252.05,0.0001]
[1737770024380,0.10762665,252.06,252.05,0.0001]
[1737770027184,0.03,252.06,252.05,0.0001]
[1737770027478,0.10424622,252.06,252.05,0.0001]
[1737770035195,23.88113022,252.06,252.05,0.0001]
[1737770036896,24.27747692,252.06,252.05,0.0001]
[1737770037795,23.88113022,252.06,252.05,0.0001]
[1737770039494,24.27747692,252.06,252.05,0.0001]
[1737770043395,24.27747692,252.06,252.0,0.063]
[1737770043597,23.776884,252.04,252.0,0.063]
[1737770043892,0.3963467,252.03,252.0,0.063]
[1737770045783,24.173584,252.02,252.0,0.063]
[1737770046594,24.173584,252.02,251.94,0.063]
[1737770046595,0.3967,252.02,251.94,0.063]
[1737770046795,24.1732307,252.01,251.94,0.063]
[1737770047176,0.3963467,252.01,251.94,0.063]
[1737770047495,0.08021657,251.95,251.94,0.063]
[1737770047987,0.08021657,251.95,251.88,6.6463]
[1737770048300,0.3963467,251.94,251.88,6.6463]
[1737770048876,0.3969,251.93,251.88,6.6463]
[1737770049997,25.166084,251.93,251.84,1.5279]
[1737770050499,0.3969,251.93,251.89,1.0]
[1737770050799,0.3969,251.93,251.91,1.0]
[1737770051299,0.3969,251.93,251.89,1.0]
[1737770051681,0.3969,251.93,251.87,1.0]
[1737770054210,0.3969,251.93,251.89,1.0]
[1737770054602,0.3969,251.93,251.87,1.0]
[1737770057713,0.47711657,251.95,251.9,1.0]
[1737770059396,0.47711657,251.95,251.88,1.0]
[1737770060912,0.47711657,251.95,251.9,1.0]
[1737770061209,0.47711657,251.95,251.9,1.063]
[1737770061412,0.50711657,251.95,251.9,1.063]
[1737770061918,0.50711657,251.95,251.93,1.0]
[1737770062911,0.50711657,251.95,251.9,0.063]
[1737770063215,0.50711657,251.95,251.93,1.0]
[1737770066325,0.50711657,251.95,251.91,1.0]
[1737770066703,24.68034727,251.95,251.9,0.063]
[1737770067113,25.67254727,251.95,251.9,0.063]
[1737770067316,25.5923307,251.95,251.9,0.063]
[1737770067509,0.08557456,251.91,251.9,0.063]
[1737770068416,0.08557456,251.91,251.9,1.063]
[1737770069502,0.08557456,251.91,251.9,0.063]
[1737770074614,0.08557456,251.91,251.9,1.063]
[1737770075123,0.08557456,251.91,251.9,7.4441]
[1737770075827,0.08557456,251.91,251.9,11.4139]
[1737770076119,0.08557456,251.91,251.9,7.4441]
[1737770078130,0.08557456,251.91,251.9,8.9965]
[1737770080232,0.08557456,251.91,251.9,6.4441]
[1737770081804,0.08557456,251.91,251.9,0.063]
[1737770084809,24.25880526,251.91,251.9,0.063]
[1737770086733,24.25880526,251.91,251.9,0.0001]
[1737770087239,24.1732307,251.91,251.9,0.0001]
[1737770087539,24.25289295,251.91,251.9,0.0001]
[1737770090037,25.9933725,251.91,251.9,0.0001]
[1737770096647,26.0233725,251.91,251.9,0.0001]
[1737770100450,23.776884,251.89,251.75,1.0]
[1737770100630,0.3963467,251.88,251.75,1.0]
[1737770102651,0.3963467,251.88,251.74,0.063]
[1737770102652,25.166384,251.87,251.74,0.063]
[1737770102875,24.1732307,251.86,251.74,0.063]
[1737770103155,0.3963467,251.86,251.74,0.063]
[1737770104024,23.776884,251.84,251.74,0.063]
[1737770104226,0.3963467,251.83,251.74,0.063]
[1737770104720,23.776884,251.81,251.74,0.063]
[1737770104928,0.3963467,251.8,251.74,0.063]
[1737770106155,25.166784,251.79,251.74,0.063]
[1737770106447,24.1732307,251.78,251.74,0.063]
[1737770106657,0.3963467,251.78,251.74,0.063]
[1737770107259,0.3971,251.77,251.74,0.063]
[1737770107432,0.08331636,251.75,251.74,0.063]
[1737770109766,24.25740036,251.75,251.74,0.063]
[1737770110452,0.48051636,251.75,251.74,0.063]
[1737770110649,0.48051636,251.75,251.73,0.0001]
[1737770110850,24.1732307,251.74,251.73,0.0001]
[1737770112466,0.3963467,251.74,251.73,0.0001]
[1737770114251,1.3903,251.73,251.68,0.063]
[1737770114454,0.3963467,251.72,251.68,0.063]
[1737770115147,0.3972,251.73,251.7,1.0]
[1737770115351,0.3972,251.73,251.72,1.0]
[1737770115857,0.3972,251.73,251.68,0.063]
[1737770116037,0.3963467,251.72,251.68,0.063]
[1737770116438,0.3972,251.71,251.68,0.063]
[1737770117455,23.776884,251.7,251.68,0.063]
[1737770118464,0.3963467,251.71,251.68,0.063]
[1737770118654,0.3973,251.69,251.68,0.063]
[1737770122268,24.1732307,251.74,251.68,0.063]
[1737770122464,0.3972,251.73,251.68,0.063]
[1737770122763,0.3972,251.73,251.7,1.0]
[1737770122964,0.3972,251.73,251.72,1.0]
[1737770123165,0.08331636,251.75,251.74,1.0]
[1737770127272,23.776884,251.8,251.74,1.0]
[1737770127475,23.85238353,251.8,251.79,1.0]
[1737770127669,0.07549953,251.8,251.79,1.0]
[1737770128687,0.08565788,251.81,251.8,1.0]
[1737770129483,0.07860539,251.83,251.82,2.0]
[1737770130880,0.4269,251.91,251.85,1.0]
[1737770130881,0.03,251.91,251.85,1.0]
[1737770131259,0.03,251.91,251.85,8.7947]
[1737770131646,0.03,251.91,251.85,1.0]
[1737770131860,0.427,251.86,251.74,1.5858]
[1737770132068,24.1732307,251.85,251.74,1.5858]
[1737770132274,23.776884,251.85,251.79,1.0]
[1737770132468,0.03,251.86,251.81,1.0]
[1737770132681,0.427,251.86,251.84,1.0]
[1737770132895,0.03,251.86,251.84,1.0]
[1737770134657,0.03,251.86,251.82,1.0]
[1737770135479,0.03,251.86,251.81,1.0]
[1737770135879,0.03,251.86,251.83,1.0]
[1737770136182,0.03,251.86,251.85,2.0]
[1737770136651,0.03,251.86,251.85,1.0]
[1737770137864,0.03,251.86,251.83,1.0]
[1737770139283,0.03,251.86,251.83,2.0]
[1737770139657,0.03,251.86,251.83,1.0]
[1737770139859,0.03,251.86,251.81,2.0]
[1737770140583,0.03,251.86,251.81,1.0]
[1737770141457,0.03,251.86,251.8,1.0]
[1737770141682,0.03,251.86,251.83,1.0]
[1737770142188,0.03,251.86,251.85,1.0]
[1737770147263,0.03,251.86,251.83,2.0]
[1737770147463,0.10356022,251.86,251.83,2.0]
[1737770148481,0.10356022,251.86,251.85,1.0]
[1737770148869,0.50056022,251.86,251.85,1.0]
[1737770150084,0.10356022,251.86,251.85,1.0]
[1737770154795,0.10356022,251.86,251.85,2.0]
[1737770156972,0.10356022,251.86,251.85,8.079]
[1737770160299,0.08684733,251.9,251.89,21.0]
[1737770160469,0.0024044,251.92,251.91,2.0]
[1737770161086,0.0024044,251.92,251.91,25.776884]
[1737770161371,0.03,251.97,251.93,2.0]
[1737770161695,0.03,251.97,251.93,8.8693]
[1737770165500,0.03,251.97,251.93,4.9]
[1737770165801,0.03,251.97,251.93,2.0]
[1737770165984,0.03,251.97,251.91,2.0]
[1737770166182,0.03,251.97,251.89,1.0]
[1737770166183,0.50166375,251.94,251.89,1.0]
[1737770166498,0.50166375,251.94,251.88,1.0]
[1737770167275,0.4269,251.94,251.88,1.0]
[1737770167504,0.07336428,251.89,251.88,1.0]
[1737770167704,0.07336428,251.89,251.84,1.0]
[1737770167705,0.47036428,251.89,251.84,1.0]
[1737770168304,0.47036428,251.89,251.83,0.063]
[1737770168305,23.776884,251.88,251.83,0.063]
[1737770169403,0.47036428,251.89,251.83,2.063]
[1737770169583,0.47036428,251.89,251.85,2.0]
[1737770169785,0.47036428,251.89,251.87,1.0]
[1737770170191,0.47036428,251.89,251.85,1.0]
[1737770170392,0.47036428,251.89,251.84,1.0]
[1737770170807,0.47036428,251.89,251.83,0.063]
[1737770171819,1.46276428,251.89,251.83,0.063]
[1737770172292,1.46276428,251.89,251.84,1.0]
[1737770172699,1.46276428,251.89,251.83,0.063]
[1737770174300,1.46276428,251.89,251.83,1.063]
[1737770174301,0.47036428,251.89,251.83,1.063]
[1737770174700,0.47036428,251.89,251.84,1.0]
[1737770177603,23.776884,251.88,251.83,0.063]
[1737770179216,0.397,251.87,251.83,0.063]
[1737770180609,0.397,251.87,251.83,1.063]
[1737770180822,0.397,251.87,251.83,0.063]
[1737770182116,0.397,251.87,251.84,1.0]
[1737770182314,0.07336428,251.89,251.87,1.0]
[1737770182520,0.07336428,251.89,251.87,2.0]
[1737770182703,0.07336428,251.89,251.88,1.0]
[1737770186511,0.07336428,251.89,251.88,7.6062]
[1737770187202,0.03,251.94,251.93,1.0]
[1737770187418,0.03,251.94,251.93,2.0]
[1737770187709,0.10447134,251.94,251.93,2.0]
[1737770196197,0.10447134,251.94,251.93,1.0]
[1737770198001,0.3969,251.93,251.9,1.0]
[1737770199206,0.3969,251.93,251.91,1.0]
[1737770199709,0.3969,251.93,251.9,1.0]
[1737770200119,0.3969,251.93,251.88,1.0]
[1737770203733,0.3969,251.93,251.9,1.0]
[1737770205233,0.3969,251.93,251.88,1.063]
[1737770207232,0.03,251.94,251.88,1.063]
[1737770207536,0.07555337,251.89,251.88,1.063]
[1737770222025,0.07555337,251.89,251.88,0.063]
[1737770223240,0.07555337,251.89,251.88,1.063]
[1737770225330,0.07555337,251.89,251.88,0.063]
[1737770227451,0.03,251.93,251.88,0.063]
[1737770227654,0.07525578,251.89,251.88,0.063]
[1737770229457,0.47215578,251.89,251.88,0.063]
[1737770242470,0.47215578,251.89,251.88,1.063]
[1737770243976,0.47215578,251.89,251.88,0.063]
[1737770244274,0.47215578,251.89,251.88,1.063]
[1737770246083,0.07525578,251.89,251.88,1.063]
[1737770247369,0.03,251.93,251.92,1.0]
[1737770247677,0.10852192,251.93,251.92,1.0]
[1737770251674,0.10852192,251.93,251.92,7.349]
[1737770257173,0.10852192,251.93,251.92,1.0]
[1737770265491,0.50542192,251.93,251.92,1.0]
[1737770267383,0.4269,251.93,251.92,1.0]
[1737770267690,0.50883333,251.93,251.9,1.0]
[1737770267874,24.28571733,251.93,251.9,1.0]
[1737770268588,0.50883333,251.93,251.92,1.0]
[1737770275480,0.50883333,251.93,251.9,1.063]
[1737770275880,0.50883333,251.93,251.92,1.0]
[1737770277091,0.50883333,251.93,251.9,1.063]
[1737770277391,0.50883333,251.93,251.92,1.0]
[1737770287202,0.4269,251.93,251.92,1.0]
[1737770287503,0.50838648,251.93,251.92,1.0]
[1737770288684,0.11148648,251.93,251.92,1.0]
[1737770298307,0.11148648,251.93,251.92,1.063]
[1737770301998,23.88837048,251.93,251.92,0.063]
[1737770302499,23.88837048,251.93,251.92,1.063]
[1737770303115,23.88837048,251.93,251.92,0.063]
[1737770303618,23.88837048,251.93,251.92,1.063]
[1737770307420,0.03,251.93,251.92,1.063]
[1737770307599,0.11635546,251.93,251.92,1.063]
[1737770308022,23.69508724,251.96,251.92,1.063]
[1737770308518,0.3969,251.95,251.92,0.063]
[1737770308904,0.3969,251.95,251.92,1.063]
[1737770311627,0.3969,251.95,251.93,1.0]
[1737770312920,0.3969,251.95,251.92,0.063]
[1737770313110,0.3969,251.95,251.93,1.0]
[1737770318226,0.3969,251.95,251.92,0.063]
[1737770318831,0.3969,251.95,251.93,1.0]
[1737770325627,0.03,251.96,251.93,1.0]
[1737770326016,0.03,251.96,251.95,1.0]
[1737770327533,0.10264402,251.96,251.95,1.0]
[1737770330241,0.49944402,251.96,251.95,1.0]
[1737770335643,0.10264402,251.96,251.95,1.0]
[1737770339337,0.3969,251.95,251.93,1.0]
[1737770342953,0.3969,251.95,251.92,0.063]
[1737770344256,0.3969,251.95,251.93,1.0]
[1737770347643,23.85279425,251.94,251.93,1.0]
[1737770348042,0.3969,251.93,251.92,0.063]
[1737770353362,0.07591025,251.94,251.93,1.0]
[1737770367282,0.3969,251.95,251.93,1.0]
[1737770367581,0.08419643,251.94,251.93,1.0]
[1737770376782,0.3969,251.93,251.92,0.063]
[1737770387177,23.806884,251.96,251.92,0.063]
[1737770387496,0.07847987,251.94,251.93,1.0]
[1737770389809,0.47537987,251.94,251.93,1.0]
[1737770390404,24.25226387,251.94,251.92,0.063]
[1737770390621,24.25226387,251.94,251.92,0.0001]
[1737770390900,24.1732307,251.93,251.9,0.0001]
[1737770391600,0.3963467,251.93,251.9,0.0001]
[1737770392321,0.3969,251.92,251.9,0.0001]
[1737770392819,23.776884,251.91,251.9,0.0001]
[1737770394727,0.3969,251.9,251.88,0.0001]
[1737770394919,24.1732307,251.89,251.88,0.0001]
[1737770399502,23.776884,251.87,251.81,0.063]
[1737770399703,24.1732307,251.87,251.81,0.063]
[1737770400009,24.1732307,251.87,251.81,1.063]
[1737770400833,24.1732307,251.87,251.81,0.063]
[1737770401015,0.397,251.86,251.81,0.063]
[1737770401728,0.397,251.86,251.83,0.0001]
[1737770401930,0.397,251.86,251.81,0.0001]
[1737770401931,24.1732307,251.85,251.81,0.0001]
[1737770403632,24.173884,251.84,251.81,0.0001]
[1737770403834,24.1732307,251.83,251.81,0.0001]
[1737770405033,0.3971,251.82,251.81,0.0001]
[1737770407538,0.3971,251.82,251.71,7.9364]
[1737770407539,23.776884,251.81,251.71,6.354]
[1737770407723,0.3963467,251.8,251.71,6.354]
[1737770408236,0.3963467,251.8,251.72,1.0]
[1737770408752,0.3963467,251.81,251.72,1.0]
[1737770409036,0.3963467,251.81,251.71,6.354]
[1737770409853,12.3063467,251.81,251.71,6.354]
[1737770410022,1.3899,251.8,251.71,6.354]
[1737770410227,24.1732307,251.79,251.71,6.354]
[1737770410729,23.776884,251.77,251.69,0.063]
[1737770411040,23.776884,251.77,251.68,0.063]
[1737770411041,0.3963467,251.76,251.62,0.063]
[1737770411514,35.686884,251.75,251.62,0.063]
[1737770411714,0.3963467,251.74,251.62,0.063]
[1737770412245,27.153384,251.73,251.62,0.063]
[1737770412430,36.0832307,251.72,251.62,0.063]
[1737770412638,59.516884,251.7,251.57,0.063]
[1737770412946,47.606884,251.68,251.57,0.0001]
[1737770413243,0.3963467,251.67,251.57,0.0001]
[1737770413826,27.154384,251.66,251.57,0.0001]
[1737770414032,0.3963467,251.65,251.57,0.0001]
[1737770415825,25.167584,251.64,251.54,0.0001]
[1737770416024,24.1732307,251.63,251.54,0.0001]
[1737770416238,0.3963467,251.63,251.54,0.0001]
[1737770416435,24.1732307,251.63,251.54,0.0001]
[1737770417035,23.776884,251.6,251.54,0.0001]
[1737770417238,23.776884,251.6,251.4,6.1624]
[1737770417239,1.0,251.46,251.32,6.1624]
[1737770417545,35.74,251.55,251.36,1.0]
[1737770417546,23.776884,251.45,251.36,1.0]
[1737770417745,0.3963467,251.5,251.36,1.0]
[1737770418544,23.776884,251.45,251.34,1.0]
[1737770418725,0.3963467,251.46,251.36,1.0]
[1737770418932,23.776884,251.49,251.32,6.1624]
[1737770418933,1.3917,251.48,251.38,1.0]
[1737770419231,0.3963467,251.47,251.35,1.0]
[1737770419431,25.1732307,251.47,251.32,7.1624]
[1737770419627,23.776884,251.46,251.35,1.0]
[1737770419962,0.3963467,251.45,251.35,1.0]
[1737770420141,0.3963467,251.45,251.33,1.0]
[1737770420538,25.168784,251.44,251.33,1.0]
[1737770420851,25.168784,251.44,251.35,1.0]
[1737770421348,23.776884,251.36,251.31,0.063]
[1737770421520,24.1732307,251.36,251.31,0.063]
[1737770421720,24.1732307,251.36,251.31,0.0001]
[1737770422249,23.776884,251.33,251.31,0.0001]
[1737770422550,0.3978,251.32,251.31,0.0001]
[1737770423128,24.174684,251.32,251.31,0.0001]
[1737770427540,24.26023074,251.32,251.31,0.0001]
[1737770438760,0.48334674,251.32,251.31,0.0001]
[1737770440979,24.29023074,251.32,251.31,0.0001]
[1737770442451,25.29023074,251.32,251.31,0.0001]
[1737770444364,24.29023074,251.32,251.31,0.0001]
[1737770447382,0.03,251.32,251.31,0.0001]
[1737770447675,0.10595285,251.32,251.31,0.0001]
[1737770448579,0.10595285,251.32,251.31,6.2813]
[1737770449781,0.08391262,251.33,251.31,6.2813]
[1737770451090,0.04412192,251.33,251.31,6.2813]
[1737770451562,0.08409361,251.34,251.31,6.2813]
[1737770453183,0.11409361,251.34,251.31,6.2813]
[1737770453390,0.0746479,251.35,251.31,10.2602]
[1737770455196,0.07787814,251.36,251.33,1.6369]
[1737770455374,0.07728762,251.38,251.36,1.0]
[1737770456363,0.07728762,251.38,251.36,4.9782]
[1737770458395,0.08122255,251.4,251.37,7.9099]
[1737770464699,0.08122255,251.4,251.37,7.9729]
[1737770464899,0.11122255,251.4,251.37,7.9729]
[1737770465204,0.11122255,251.4,251.37,11.951]
[1737770465799,0.11122255,251.4,251.39,20.0]
[1737770465986,0.07461982,251.41,251.4,20.0]
[1737770466378,0.07461982,251.41,251.4,27.273]
[1737770466598,0.03,251.5,251.43,1.0]
[1737770466799,0.03,251.5,251.44,22.86]
[1737770467506,0.08721892,251.45,251.44,20.0]
[1737770468511,0.08721892,251.45,251.41,21.6369]
[1737770468812,0.08721892,251.45,251.43,20.0]
[1737770471911,0.08721892,251.45,251.43,23.9771]
[1737770472108,0.08721892,251.45,251.41,1.6369]
[1737770473309,0.48491892,251.45,251.41,1.6369]
[1737770474714,0.48491892,251.45,251.4,6.273]
[1737770475030,24.26180292,251.45,251.37,0.063]
[1737770475528,25.25600292,251.45,251.37,0.063]
[1737770478916,25.65234962,251.45,251.37,0.063]
[1737770479323,24.776884,251.43,251.37,0.0001]
[1737770479496,0.3963467,251.42,251.37,0.0001]
[1737770479892,23.776884,251.43,251.37,0.0001]
[1737770480823,23.776884,251.41,251.37,0.0001]
[1737770481115,24.1732307,251.41,251.37,0.0001]
[1737770482200,0.3977,251.4,251.37,0.0001]
[1737770482601,24.1732307,251.39,251.31,0.0001]